[Event "*** Titled Tuesday Blitz"]
[Site "Chess.com"]
[Date "2020.12.29"]
[Round "10"]
[White "LiderChessAcademy"]
[Black "Vamostodorecto"]
[Result "0-1"]
[WhiteElo "2579"]
[BlackElo "2448"]
[TimeControl "180+1"]
[EndTime "11:54:25 PST"]
[Termination "Vamostodorecto won by checkmate"]

1. e4 {[%clk 0:03:00.9]} 1... e5 {[%clk 0:03:00.5]} 2. Nf3 {[%clk 0:02:58.7]}
2... Nc6 {[%clk 0:03:01.1]} 3. Bb5 {[%clk 0:02:57.6]} 3... a6 {[%clk 0:02:59.5]}
4. Ba4 {[%clk 0:02:54.7]} 4... Nf6 {[%clk 0:03:00.1]} 5. O-O {[%clk 0:02:53.6]}
5... Be7 {[%clk 0:03:00.7]} 6. Re1 {[%clk 0:02:51.7]} 6... b5 {[%clk 0:03:01.3]}
7. Bb3 {[%clk 0:02:50.9]} 7... O-O {[%clk 0:03:02.1]} 8. h3 {[%clk 0:02:42.5]}
8... Bb7 {[%clk 0:03:01.5]} 9. c3 {[%clk 0:02:36.5]} 9... d5 {[%clk 0:03:01.8]}
10. exd5 {[%clk 0:02:32.4]} 10... Nxd5 {[%clk 0:03:02.6]} 11. d3 {[%clk
0:02:24.4]} 11... f6 {[%clk 0:03:00.1]} 12. d4 {[%clk 0:02:18.7]} 12... exd4
{[%clk 0:02:58.1]} 13. Nxd4 {[%clk 0:02:13]} 13... Nxd4 {[%clk 0:02:57.5]} 14.
Qxd4 {[%clk 0:02:13.9]} 14... c5 {[%clk 0:02:56.7]} 15. Qe4 {[%clk 0:02:08.8]}
15... c4 {[%clk 0:02:44]} 16. Bc2 {[%clk 0:02:07.5]} 16... f5 {[%clk 0:02:44.5]}
17. Qe6+ {[%clk 0:02:04.4]} 17... Kh8 {[%clk 0:02:44.6]} 18. Na3 {[%clk
0:01:53.1]} 18... Bxa3 {[%clk 0:02:28.3]} 19. bxa3 {[%clk 0:01:35.3]} 19... Nxc3
{[%clk 0:02:28.4]} 20. Bb2 {[%clk 0:01:30.6]} 20... Qg5 {[%clk 0:02:23.8]} 21.
g3 {[%clk 0:01:13.7]} 21... Ne4 {[%clk 0:02:21.8]} 22. h4 {[%clk 0:01:01.2]}
22... Qd2 {[%clk 0:02:13.4]} 23. Bxe4 {[%clk 0:00:31.5]} 23... fxe4 {[%clk
0:02:11]} 24. Bxg7+ {[%clk 0:00:30.1]} 24... Kxg7 {[%clk 0:02:11.9]} 25. Qe5+
{[%clk 0:00:29.1]} 25... Rf6 {[%clk 0:02:02.5]} 26. Rf1 {[%clk 0:00:19.7]} 26...
Qd5 {[%clk 0:01:58.7]} 27. Qc7+ {[%clk 0:00:19.1]} 27... Rf7 {[%clk 0:01:57.3]}
28. Qb6 {[%clk 0:00:15]} 28... e3 {[%clk 0:01:54.1]} 29. f3 {[%clk 0:00:15.4]}
29... Rxf3 {[%clk 0:01:47.7]} 30. Qc7+ {[%clk 0:00:15.7]} 30... Rf7 {[%clk
0:01:42.9]} 31. Rxf7+ {[%clk 0:00:14.8]} 31... Qxf7 {[%clk 0:01:43.8]} 32. Qe5+
{[%clk 0:00:14.6]} 32... Qf6 {[%clk 0:01:04.6]} 33. Qc7+ {[%clk 0:00:14.5]}
33... Kg8 {[%clk 0:00:49.8]} 34. Rf1 {[%clk 0:00:14]} 34... e2 {[%clk
0:00:48.6]} 35. Rxf6 {[%clk 0:00:13.8]} 35... e1=Q+ {[%clk 0:00:48.3]} 36. Kh2
{[%clk 0:00:13.6]} 36... Qh1# {[%clk 0:00:47.2]} 0-1

[Event "*** Titled Tuesday Blitz"]
[Site "Chess.com"]
[Date "2020.12.29"]
[Round "10"]
[White "Alexandercs432"]
[Black "akanga001"]
[Result "1-0"]
[WhiteElo "2183"]
[BlackElo "1946"]
[TimeControl "180+1"]
[EndTime "11:54:29 PST"]
[Termination "Alexandercs432 won on time"]

1. e4 {[%clk 0:02:58.6]} 1... e5 {[%clk 0:02:59.6]} 2. Nf3 {[%clk 0:02:59]} 2...
Nc6 {[%clk 0:02:59.1]} 3. Bb5 {[%clk 0:02:58.9]} 3... a6 {[%clk 0:02:54.7]} 4.
Ba4 {[%clk 0:02:59.2]} 4... Nf6 {[%clk 0:02:55.1]} 5. O-O {[%clk 0:02:59.6]}
5... b5 {[%clk 0:02:49.2]} 6. Bb3 {[%clk 0:02:59.6]} 6... Be7 {[%clk 0:02:48.2]}
7. Re1 {[%clk 0:02:59.6]} 7... d6 {[%clk 0:02:47.8]} 8. c3 {[%clk 0:02:59.5]}
8... O-O {[%clk 0:02:45.4]} 9. h3 {[%clk 0:03:00]} 9... Nb8 {[%clk 0:02:45.7]}
10. d4 {[%clk 0:03:00]} 10... Nbd7 {[%clk 0:02:44.3]} 11. Nbd2 {[%clk
0:02:59.9]} 11... Bb7 {[%clk 0:02:44.3]} 12. Bc2 {[%clk 0:03:00.8]} 12... Nb6
{[%clk 0:02:30.5]} 13. Nf1 {[%clk 0:02:56.2]} 13... Nfd7 {[%clk 0:02:22]} 14.
Ng3 {[%clk 0:02:55.4]} 14... g6 {[%clk 0:02:21.3]} 15. d5 {[%clk 0:02:51.3]}
15... Re8 {[%clk 0:02:20.2]} 16. b3 {[%clk 0:02:48.2]} 16... Bf8 {[%clk
0:02:19.8]} 17. Bg5 {[%clk 0:02:43.7]} 17... f6 {[%clk 0:02:18.2]} 18. Bd2
{[%clk 0:02:42.4]} 18... Bg7 {[%clk 0:02:17.8]} 19. Nh2 {[%clk 0:02:41.2]} 19...
Nc5 {[%clk 0:02:14]} 20. Qe2 {[%clk 0:02:39.8]} 20... c6 {[%clk 0:02:04.5]} 21.
c4 {[%clk 0:02:35.7]} 21... bxc4 {[%clk 0:01:57]} 22. bxc4 {[%clk 0:02:36.6]}
22... cxd5 {[%clk 0:01:54.4]} 23. cxd5 {[%clk 0:02:37.5]} 23... Rc8 {[%clk
0:01:54.5]} 24. Ba5 {[%clk 0:02:31.6]} 24... Ncd7 {[%clk 0:01:38.1]} 25. Rab1
{[%clk 0:02:27.6]} 25... Rc5 {[%clk 0:01:37.6]} 26. Bb4 {[%clk 0:02:24.7]} 26...
Rc4 {[%clk 0:01:36.2]} 27. Bd3 {[%clk 0:02:18.8]} 27... Rc8 {[%clk 0:01:22]} 28.
Bxd6 {[%clk 0:02:18.2]} 28... Nc5 {[%clk 0:01:22.2]} 29. Bxc5 {[%clk 0:02:13.2]}
29... Rxc5 {[%clk 0:01:21.6]} 30. Bxa6 {[%clk 0:02:11.6]} 30... Bxa6 {[%clk
0:01:19.5]} 31. Qxa6 {[%clk 0:02:12.4]} 31... Nc4 {[%clk 0:01:18.7]} 32. Rec1
{[%clk 0:02:07.3]} 32... Qc7 {[%clk 0:01:15.9]} 33. Rb4 {[%clk 0:01:55.7]} 33...
Nd6 {[%clk 0:01:06.7]} 34. Rxc5 {[%clk 0:01:45.8]} 34... Qxc5 {[%clk 0:01:07.6]}
35. Qa4 {[%clk 0:01:36.5]} 35... Rc8 {[%clk 0:00:46.5]} 36. Nhf1 {[%clk
0:01:30.3]} 36... Bf8 {[%clk 0:00:31.4]} 37. Kh2 {[%clk 0:01:27.4]} 37... f5
{[%clk 0:00:05.2]} 38. f3 {[%clk 0:01:22.9]} 38... fxe4 {[%clk 0:00:04.5]} 39.
Nxe4 {[%clk 0:01:21.4]} 39... Nc4 {[%clk 0:00:05.4]} 40. Nxc5 {[%clk 0:01:20.1]}
1-0

[Event "*** Titled Tuesday Blitz"]
[Site "Chess.com"]
[Date "2020.12.29"]
[Round "10"]
[White "03revilo"]
[Black "MIJuanReyesRosa"]
[Result "0-1"]
[WhiteElo "2281"]
[BlackElo "2090"]
[TimeControl "180+1"]
[EndTime "11:54:30 PST"]
[Termination "MIJuanReyesRosa won by checkmate"]

1. c4 {[%clk 0:03:00.9]} 1... g6 {[%clk 0:02:56.9]} 2. Nc3 {[%clk 0:03:00.5]}
2... Bg7 {[%clk 0:02:56.7]} 3. Nf3 {[%clk 0:03:01.1]} 3... c5 {[%clk 0:02:51]}
4. e3 {[%clk 0:03:00.5]} 4... Nf6 {[%clk 0:02:49]} 5. d4 {[%clk 0:03:00.7]} 5...
cxd4 {[%clk 0:02:48.3]} 6. exd4 {[%clk 0:03:01.6]} 6... O-O {[%clk 0:02:47.4]}
7. Bg5 {[%clk 0:02:47.5]} 7... h6 {[%clk 0:02:33.2]} 8. Bxf6 {[%clk 0:02:44.2]}
8... Bxf6 {[%clk 0:02:31.6]} 9. Qd2 {[%clk 0:02:34.5]} 9... Bg7 {[%clk
0:02:29.5]} 10. h4 {[%clk 0:02:27]} 10... d6 {[%clk 0:02:26.7]} 11. h5 {[%clk
0:02:23.6]} 11... g5 {[%clk 0:02:24.2]} 12. Be2 {[%clk 0:02:12.3]} 12... Bg4
{[%clk 0:02:22.4]} 13. Nxg5 {[%clk 0:00:51.1]} 13... Bxe2 {[%clk 0:02:20.3]} 14.
Nxe2 {[%clk 0:00:52]} 14... hxg5 {[%clk 0:02:10.7]} 15. Qxg5 {[%clk 0:00:52.9]}
15... e6 {[%clk 0:02:05.2]} 16. Qg4 {[%clk 0:00:52.6]} 16... f5 {[%clk
0:01:53.9]} 17. Qg3 {[%clk 0:00:48.9]} 17... Qa5+ {[%clk 0:01:41]} 18. Kf1
{[%clk 0:00:47.9]} 18... f4 {[%clk 0:01:32.3]} 19. Nxf4 {[%clk 0:00:46.1]} 19...
Rxf4 {[%clk 0:01:18.9]} 20. Qxf4 {[%clk 0:00:43.9]} 20... Qf5 {[%clk 0:01:10.6]}
21. Qxd6 {[%clk 0:00:31.8]} 21... Nc6 {[%clk 0:01:08.9]} 22. Rd1 {[%clk
0:00:14.1]} 22... Rd8 {[%clk 0:01:04.8]} 23. Qg3 {[%clk 0:00:13.5]} 23... Rxd4
{[%clk 0:00:59.7]} 24. Rxd4 {[%clk 0:00:10.7]} 24... Nxd4 {[%clk 0:00:58.7]} 25.
Kg1 {[%clk 0:00:09.3]} 25... Ne2+ {[%clk 0:00:56.2]} 26. Kh2 {[%clk 0:00:09.5]}
26... Nxg3 {[%clk 0:00:52.6]} 27. Kxg3 {[%clk 0:00:10.4]} 27... Be5+ {[%clk
0:00:48.2]} 28. Kh4 {[%clk 0:00:10]} 28... Qxf2+ {[%clk 0:00:40.1]} 29. Kg5
{[%clk 0:00:09.8]} 29... Qf4+ {[%clk 0:00:38]} 30. Kg6 {[%clk 0:00:10]} 30...
Qf6# {[%clk 0:00:34.1]} 0-1

[Event "*** Titled Tuesday Blitz"]
[Site "Chess.com"]
[Date "2020.12.29"]
[Round "10"]
[White "Kosak12"]
[Black "Brave_spirit12"]
[Result "1-0"]
[WhiteElo "2764"]
[BlackElo "2546"]
[TimeControl "180+1"]
[EndTime "11:54:32 PST"]
[Termination "Kosak12 won on time"]

1. d4 {[%clk 0:03:00.9]} 1... Nf6 {[%clk 0:03:00.1]} 2. c4 {[%clk 0:03:00.5]}
2... e6 {[%clk 0:03:00.2]} 3. Nc3 {[%clk 0:03:01]} 3... d5 {[%clk 0:03:01.1]} 4.
cxd5 {[%clk 0:03:00.7]} 4... exd5 {[%clk 0:03:02]} 5. Bg5 {[%clk 0:03:01.1]}
5... Be7 {[%clk 0:03:02.9]} 6. e3 {[%clk 0:03:01.4]} 6... O-O {[%clk 0:03:03.2]}
7. Bd3 {[%clk 0:03:01.9]} 7... c6 {[%clk 0:03:03.1]} 8. Qc2 {[%clk 0:03:01.7]}
8... h6 {[%clk 0:03:03.6]} 9. Bxf6 {[%clk 0:02:44.9]} 9... Bxf6 {[%clk
0:03:04.5]} 10. Nf3 {[%clk 0:02:45.6]} 10... Na6 {[%clk 0:03:04.4]} 11. a3
{[%clk 0:02:36.2]} 11... Nc7 {[%clk 0:03:03.3]} 12. O-O {[%clk 0:02:31.9]} 12...
Be7 {[%clk 0:03:02.4]} 13. b4 {[%clk 0:02:30.7]} 13... Bd6 {[%clk 0:03:01.6]}
14. Rab1 {[%clk 0:02:27.9]} 14... Re8 {[%clk 0:03:00.8]} 15. a4 {[%clk
0:02:24.7]} 15... Bg4 {[%clk 0:02:58.4]} 16. Nd2 {[%clk 0:02:14.5]} 16... Bh5
{[%clk 0:02:47.5]} 17. Bf5 {[%clk 0:02:01.6]} 17... Ne6 {[%clk 0:02:42.5]} 18.
b5 {[%clk 0:01:55.7]} 18... Ng5 {[%clk 0:02:34.4]} 19. Rfe1 {[%clk 0:01:46.5]}
19... Qf6 {[%clk 0:02:22.5]} 20. f4 {[%clk 0:01:32.5]} 20... Ne6 {[%clk
0:02:13.9]} 21. g3 {[%clk 0:01:32.6]} 21... Nf8 {[%clk 0:02:00.8]} 22. Qd3
{[%clk 0:01:28.7]} 22... Re7 {[%clk 0:01:46.9]} 23. a5 {[%clk 0:01:26.2]} 23...
Rae8 {[%clk 0:01:44.5]} 24. a6 {[%clk 0:01:22.1]} 24... Bb8 {[%clk 0:01:00.8]}
25. axb7 {[%clk 0:01:00.7]} 25... Rxb7 {[%clk 0:01:01.7]} 26. bxc6 {[%clk
0:01:01.1]} 26... Qxc6 {[%clk 0:01:00.9]} 27. Rxb7 {[%clk 0:01:00]} 27... Qxb7
{[%clk 0:01:01.8]} 28. Rb1 {[%clk 0:00:59.2]} 28... Qc6 {[%clk 0:00:55.2]} 29.
Rb5 {[%clk 0:00:49.6]} 29... Bg6 {[%clk 0:00:18]} 30. Bxg6 {[%clk 0:00:45.5]}
30... Nxg6 {[%clk 0:00:18.2]} 31. Rxd5 {[%clk 0:00:45.6]} 31... Rc8 {[%clk
0:00:16.9]} 32. Rc5 {[%clk 0:00:45.5]} 32... Qb7 {[%clk 0:00:14.8]} 33. Qb5
{[%clk 0:00:43.9]} 33... Qxb5 {[%clk 0:00:09.9]} 34. Rxc8+ {[%clk 0:00:43.8]}
1-0

[Event "*** Titled Tuesday Blitz"]
[Site "Chess.com"]
[Date "2020.12.29"]
[Round "10"]
[White "Vuk2000"]
[Black "hansen"]
[Result "0-1"]
[WhiteElo "2821"]
[BlackElo "2905"]
[TimeControl "180+1"]
[EndTime "11:54:36 PST"]
[Termination "hansen won by resignation"]

1. d4 {[%clk 0:03:00.9]} 1... Nf6 {[%clk 0:02:54.3]} 2. Bg5 {[%clk 0:03:01.1]}
2... d5 {[%clk 0:02:54.2]} 3. Bxf6 {[%clk 0:03:01]} 3... exf6 {[%clk 0:02:53.4]}
4. e3 {[%clk 0:03:01.1]} 4... Bd6 {[%clk 0:02:52.3]} 5. c4 {[%clk 0:03:00.9]}
5... dxc4 {[%clk 0:02:50.1]} 6. Bxc4 {[%clk 0:03:01.8]} 6... f5 {[%clk
0:02:50.1]} 7. Nc3 {[%clk 0:03:02.3]} 7... Nd7 {[%clk 0:02:49.1]} 8. Nf3 {[%clk
0:03:01]} 8... a6 {[%clk 0:02:48.5]} 9. O-O {[%clk 0:03:00.1]} 9... O-O {[%clk
0:02:48.7]} 10. Rb1 {[%clk 0:02:54.3]} 10... Nf6 {[%clk 0:02:46.9]} 11. b4
{[%clk 0:02:51.1]} 11... g6 {[%clk 0:02:45.7]} 12. a4 {[%clk 0:02:47.9]} 12...
c6 {[%clk 0:02:38.2]} 13. b5 {[%clk 0:02:45.3]} 13... a5 {[%clk 0:02:12.7]} 14.
Qb3 {[%clk 0:02:13.7]} 14... Qe7 {[%clk 0:02:07.6]} 15. Rfe1 {[%clk 0:02:01.9]}
15... Ne4 {[%clk 0:02:05.1]} 16. Nxe4 {[%clk 0:01:44.6]} 16... fxe4 {[%clk
0:02:04.3]} 17. Nd2 {[%clk 0:01:39.3]} 17... Bb4 {[%clk 0:02:03.3]} 18. Qc2
{[%clk 0:01:38.1]} 18... cxb5 {[%clk 0:01:44.5]} 19. Bxb5 {[%clk 0:01:31.9]}
19... Be6 {[%clk 0:01:35.2]} 20. Red1 {[%clk 0:01:11.3]} 20... Bd5 {[%clk
0:01:19.5]} 21. Bc4 {[%clk 0:01:05.9]} 21... Rfc8 {[%clk 0:01:19]} 22. Qb3
{[%clk 0:01:04.1]} 22... Rxc4 {[%clk 0:01:15.9]} 23. Nxc4 {[%clk 0:01:03.3]}
23... Qe6 {[%clk 0:01:16.4]} 24. Rbc1 {[%clk 0:00:25.1]} 24... Rc8 {[%clk
0:01:15.9]} 25. Qb2 {[%clk 0:00:18.3]} 25... Rxc4 {[%clk 0:01:09]} 26. Rxc4
{[%clk 0:00:17.5]} 26... Bxc4 {[%clk 0:01:09.9]} 27. d5 {[%clk 0:00:17.9]} 27...
Bxd5 {[%clk 0:01:07.4]} 28. h4 {[%clk 0:00:17.8]} 28... h5 {[%clk 0:01:07]} 29.
Qd4 {[%clk 0:00:14.9]} 29... Bc6 {[%clk 0:01:06.7]} 30. Qd8+ {[%clk 0:00:15]}
30... Kg7 {[%clk 0:01:06.6]} 31. Qb8 {[%clk 0:00:13.9]} 31... Be7 {[%clk
0:01:01]} 32. g3 {[%clk 0:00:13]} 32... Bxa4 {[%clk 0:00:56.1]} 33. Ra1 {[%clk
0:00:10.9]} 33... Qd5 {[%clk 0:00:43.2]} 34. Rc1 {[%clk 0:00:08.1]} 34... Bc6
{[%clk 0:00:42.2]} 35. Qa7 {[%clk 0:00:03.9]} 35... a4 {[%clk 0:00:40.5]} 36.
Qb6 {[%clk 0:00:04.3]} 36... a3 {[%clk 0:00:39]} 37. Qb1 {[%clk 0:00:04.9]} 0-1

[Event "*** Titled Tuesday Blitz"]
[Site "Chess.com"]
[Date "2020.12.29"]
[Round "10"]
[White "Deepweb2020"]
[Black "Michaelson_11"]
[Result "0-1"]
[WhiteElo "2333"]
[BlackElo "2215"]
[TimeControl "180+1"]
[EndTime "11:54:38 PST"]
[Termination "Michaelson_11 won by checkmate"]

1. d4 {[%clk 0:02:48.6]} 1... Nf6 {[%clk 0:02:59.3]} 2. c4 {[%clk 0:02:44.8]}
2... g6 {[%clk 0:03:00.2]} 3. g3 {[%clk 0:02:44.7]} 3... Bg7 {[%clk 0:02:59.9]}
4. Bg2 {[%clk 0:02:45.6]} 4... O-O {[%clk 0:03:00.6]} 5. Nf3 {[%clk 0:02:46.5]}
5... d6 {[%clk 0:03:01.5]} 6. O-O {[%clk 0:02:46.9]} 6... c6 {[%clk 0:03:02.4]}
7. Nc3 {[%clk 0:02:47.5]} 7... Qb6 {[%clk 0:03:03.1]} 8. e4 {[%clk 0:02:47]}
8... Bg4 {[%clk 0:03:01.4]} 9. Na4 {[%clk 0:02:32.8]} 9... Qa6 {[%clk
0:03:00.5]} 10. b3 {[%clk 0:02:29.6]} 10... Nxe4 {[%clk 0:02:54.5]} 11. Re1
{[%clk 0:02:28]} 11... d5 {[%clk 0:02:41]} 12. Bf1 {[%clk 0:02:21.5]} 12... b5
{[%clk 0:02:24.8]} 13. cxd5 {[%clk 0:02:05]} 13... cxd5 {[%clk 0:02:21.6]} 14.
Bf4 {[%clk 0:01:49.9]} 14... Qf6 {[%clk 0:02:08.5]} 15. Nb2 {[%clk 0:01:42.6]}
15... g5 {[%clk 0:02:06.7]} 16. Nd3 {[%clk 0:01:23.2]} 16... gxf4 {[%clk
0:02:03.3]} 17. Nxf4 {[%clk 0:01:24.1]} 17... e6 {[%clk 0:01:45.5]} 18. h3
{[%clk 0:01:15.5]} 18... Bxf3 {[%clk 0:01:36]} 19. Qxf3 {[%clk 0:01:16.4]} 19...
Ng5 {[%clk 0:01:34.4]} 20. Qg4 {[%clk 0:01:11.2]} 20... Nc6 {[%clk 0:00:52.9]}
21. Rad1 {[%clk 0:00:57.8]} 21... Qf5 {[%clk 0:00:51.2]} 22. Qh5 {[%clk
0:00:43.1]} 22... Nxd4 {[%clk 0:00:42.2]} 23. Bd3 {[%clk 0:00:42.2]} 23... Ngf3+
{[%clk 0:00:37.7]} 24. Qxf3 {[%clk 0:00:40]} 24... Nxf3+ {[%clk 0:00:37.2]} 25.
Kf1 {[%clk 0:00:39]} 25... Qxd3+ {[%clk 0:00:29.1]} 26. Nxd3 {[%clk 0:00:38.7]}
26... Nxe1 {[%clk 0:00:29.2]} 27. Nxe1 {[%clk 0:00:39.6]} 27... Rac8 {[%clk
0:00:28.9]} 28. a4 {[%clk 0:00:40.5]} 28... bxa4 {[%clk 0:00:27.8]} 29. bxa4
{[%clk 0:00:41.4]} 29... Rc4 {[%clk 0:00:28.5]} 30. a5 {[%clk 0:00:39.4]} 30...
Ra4 {[%clk 0:00:28.7]} 31. Rb1 {[%clk 0:00:39.1]} 31... Rxa5 {[%clk 0:00:28.7]}
32. Rb7 {[%clk 0:00:40]} 32... Ra1 {[%clk 0:00:28.8]} 33. Ke2 {[%clk 0:00:40]}
33... Rc8 {[%clk 0:00:28.8]} 34. Nf3 {[%clk 0:00:40.9]} 34... Bf6 {[%clk
0:00:26.3]} 35. g4 {[%clk 0:00:40.7]} 35... Rc2+ {[%clk 0:00:25.6]} 36. Kd3
{[%clk 0:00:40.7]} 36... Rc3+ {[%clk 0:00:25.2]} 37. Ke2 {[%clk 0:00:40.6]}
37... Ra2+ {[%clk 0:00:25.6]} 38. Kf1 {[%clk 0:00:41.2]} 38... Rxf3 {[%clk
0:00:25.7]} 39. g5 {[%clk 0:00:41.4]} 39... Rfxf2+ {[%clk 0:00:24.7]} 40. Kg1
{[%clk 0:00:41.4]} 40... Rfb2 {[%clk 0:00:21.5]} 41. h4 {[%clk 0:00:42.3]} 41...
Ra1# {[%clk 0:00:21.5]} 0-1

[Event "*** Titled Tuesday Blitz"]
[Site "Chess.com"]
[Date "2020.12.29"]
[Round "10"]
[White "pastouche06"]
[Black "BulletMercenary"]
[Result "1-0"]
[WhiteElo "2512"]
[BlackElo "2346"]
[TimeControl "180+1"]
[EndTime "11:54:41 PST"]
[Termination "pastouche06 won by checkmate"]

1. d4 {[%clk 0:03:00.9]} 1... e6 {[%clk 0:02:58.7]} 2. c4 {[%clk 0:03:00.7]}
2... d5 {[%clk 0:02:58.2]} 3. Nc3 {[%clk 0:03:00.4]} 3... Nf6 {[%clk 0:02:57.8]}
4. cxd5 {[%clk 0:03:00.2]} 4... exd5 {[%clk 0:02:57.7]} 5. Bg5 {[%clk
0:02:59.5]} 5... Be7 {[%clk 0:02:57.4]} 6. e3 {[%clk 0:02:59]} 6... h6 {[%clk
0:02:55.8]} 7. Bh4 {[%clk 0:02:56.3]} 7... O-O {[%clk 0:02:54.3]} 8. Bd3 {[%clk
0:02:50.2]} 8... Be6 {[%clk 0:02:49.7]} 9. Nge2 {[%clk 0:02:49.6]} 9... b6
{[%clk 0:02:49.3]} 10. O-O {[%clk 0:02:45.3]} 10... c5 {[%clk 0:02:48.1]} 11.
dxc5 {[%clk 0:02:40.1]} 11... bxc5 {[%clk 0:02:47.8]} 12. Rc1 {[%clk 0:02:40.5]}
12... Nc6 {[%clk 0:02:46.6]} 13. Bb1 {[%clk 0:02:33.7]} 13... Qd7 {[%clk
0:02:21.7]} 14. Na4 {[%clk 0:02:29.4]} 14... c4 {[%clk 0:02:19.2]} 15. b3 {[%clk
0:02:01.3]} 15... Rfd8 {[%clk 0:01:59.9]} 16. Bxf6 {[%clk 0:01:30.1]} 16... Bxf6
{[%clk 0:01:58.8]} 17. Nc5 {[%clk 0:01:30.4]} 17... Qe7 {[%clk 0:01:49.7]} 18.
Nxe6 {[%clk 0:01:30.1]} 18... Qxe6 {[%clk 0:01:50.6]} 19. Qc2 {[%clk 0:01:12.7]}
19... Ne5 {[%clk 0:01:41.2]} 20. Nd4 {[%clk 0:00:59]} 20... Qg4 {[%clk
0:01:25.2]} 21. Qh7+ {[%clk 0:00:52.6]} 21... Kf8 {[%clk 0:01:25]} 22. f3 {[%clk
0:00:37.6]} 22... Qh4 {[%clk 0:01:16.1]} 23. Nf5 {[%clk 0:00:33]} 23... g6
{[%clk 0:00:26.7]} 24. Nxh4 {[%clk 0:00:31.1]} 24... Ke7 {[%clk 0:00:26.3]} 25.
Nxg6+ {[%clk 0:00:28.3]} 25... Ke6 {[%clk 0:00:23.1]} 26. Nf4+ {[%clk
0:00:26.8]} 26... Ke7 {[%clk 0:00:22.9]} 27. bxc4 {[%clk 0:00:22]} 27... Rh8
{[%clk 0:00:21.4]} 28. Qf5 {[%clk 0:00:21.4]} 28... dxc4 {[%clk 0:00:20.2]} 29.
Nd5+ {[%clk 0:00:21.4]} 29... Kd6 {[%clk 0:00:16.3]} 30. Nxf6 {[%clk 0:00:22.3]}
30... Kc6 {[%clk 0:00:16.5]} 31. Qxe5 {[%clk 0:00:22.2]} 31... Kb6 {[%clk
0:00:17.1]} 32. Nd5+ {[%clk 0:00:20.5]} 32... Kb7 {[%clk 0:00:16.9]} 33. Qc7+
{[%clk 0:00:20]} 33... Ka6 {[%clk 0:00:17.8]} 34. Rxc4 {[%clk 0:00:19]} 34...
Rab8 {[%clk 0:00:18]} 35. Ra4+ {[%clk 0:00:18.7]} 35... Kb5 {[%clk 0:00:17.2]}
36. Qc4# {[%clk 0:00:19.4]} 1-0

[Event "*** Titled Tuesday Blitz"]
[Site "Chess.com"]
[Date "2020.12.29"]
[Round "10"]
[White "Th3ChessViking"]
[Black "Kale36"]
[Result "0-1"]
[WhiteElo "2439"]
[BlackElo "2284"]
[TimeControl "180+1"]
[EndTime "11:54:42 PST"]
[Termination "Kale36 won by checkmate"]

1. f4 {[%clk 0:03:00.4]} 1... Nc6 {[%clk 0:02:54.2]} 2. Nf3 {[%clk 0:02:59.1]}
2... d6 {[%clk 0:02:32.2]} 3. e4 {[%clk 0:02:54.4]} 3... Bg4 {[%clk 0:02:31.9]}
4. Bc4 {[%clk 0:02:49.7]} 4... e6 {[%clk 0:02:30.2]} 5. h3 {[%clk 0:02:40.6]}
5... Bxf3 {[%clk 0:02:28.6]} 6. Qxf3 {[%clk 0:02:23.6]} 6... Nf6 {[%clk
0:02:28.1]} 7. O-O {[%clk 0:02:19.4]} 7... Be7 {[%clk 0:02:25]} 8. d3 {[%clk
0:02:08.3]} 8... O-O {[%clk 0:02:22.4]} 9. Nc3 {[%clk 0:02:02.2]} 9... Nd4
{[%clk 0:02:19.6]} 10. Qf2 {[%clk 0:02:00.2]} 10... c5 {[%clk 0:02:14.6]} 11.
Be3 {[%clk 0:01:58.6]} 11... d5 {[%clk 0:02:08]} 12. exd5 {[%clk 0:01:36.2]}
12... exd5 {[%clk 0:02:04.7]} 13. Bb5 {[%clk 0:01:32.4]} 13... Nxb5 {[%clk
0:01:53.1]} 14. Nxb5 {[%clk 0:01:30.7]} 14... d4 {[%clk 0:01:52.7]} 15. Bc1
{[%clk 0:01:25.8]} 15... a6 {[%clk 0:01:47.7]} 16. Na3 {[%clk 0:01:25.5]} 16...
b5 {[%clk 0:01:48.4]} 17. Nb1 {[%clk 0:01:22.4]} 17... Nd5 {[%clk 0:01:43.4]}
18. a4 {[%clk 0:01:19]} 18... Bd6 {[%clk 0:01:31.6]} 19. axb5 {[%clk 0:01:16.4]}
19... axb5 {[%clk 0:01:32.5]} 20. Rxa8 {[%clk 0:01:16.1]} 20... Qxa8 {[%clk
0:01:33.4]} 21. Na3 {[%clk 0:01:16.1]} 21... Qc6 {[%clk 0:01:32.6]} 22. Qf3
{[%clk 0:01:13.9]} 22... c4 {[%clk 0:01:24.7]} 23. Nb1 {[%clk 0:01:06.2]} 23...
Rc8 {[%clk 0:01:21.1]} 24. Nd2 {[%clk 0:01:04.4]} 24... Ne3 {[%clk 0:01:19.4]}
25. dxc4 {[%clk 0:00:27.7]} 25... Nxf1 {[%clk 0:01:10.7]} 26. Qxf1 {[%clk
0:00:24]} 26... bxc4 {[%clk 0:01:11]} 27. Nf3 {[%clk 0:00:22.7]} 27... Bc5
{[%clk 0:01:09.2]} 28. Kh2 {[%clk 0:00:20.4]} 28... Qd5 {[%clk 0:01:08.7]} 29.
Ne5 {[%clk 0:00:18.5]} 29... Bd6 {[%clk 0:01:03.7]} 30. Nf3 {[%clk 0:00:17.9]}
30... d3 {[%clk 0:00:58.6]} 31. cxd3 {[%clk 0:00:18.8]} 31... cxd3 {[%clk
0:00:58.8]} 32. Bd2 {[%clk 0:00:18.9]} 32... h6 {[%clk 0:00:56.3]} 33. Qf2
{[%clk 0:00:17]} 33... g5 {[%clk 0:00:55.7]} 34. Qg3 {[%clk 0:00:14.1]} 34...
Rc2 {[%clk 0:00:52.8]} 35. Qg4 {[%clk 0:00:13.6]} 35... Rxd2 {[%clk 0:00:51.4]}
36. Nxd2 {[%clk 0:00:08.5]} 36... Bxf4+ {[%clk 0:00:51.5]} 37. g3 {[%clk
0:00:08.1]} 37... Bxd2 {[%clk 0:00:51.4]} 38. Qc8+ {[%clk 0:00:08.1]} 38... Kg7
{[%clk 0:00:49.8]} 39. Qc3+ {[%clk 0:00:07.6]} 39... Bxc3 {[%clk 0:00:49]} 40.
bxc3 {[%clk 0:00:07.4]} 40... d2 {[%clk 0:00:49.3]} 41. h4 {[%clk 0:00:06.9]}
41... d1=Q {[%clk 0:00:49.3]} 42. c4 {[%clk 0:00:05.3]} 42... Q1h1# {[%clk
0:00:49.1]} 0-1